fUSD/lending_fUSD_20240220
["ID","MTS","AMOUNT","RATE_DAILY","PERIOD"]
[314609862,1708450330714,-500.0,0.00049589,30]
[314609863,1708450330724,-500.0,0.00049589,30]
[314609864,1708450330734,-219.400776,0.00049589,120]
[314609865,1708450330744,-500.0,0.00049589,30]
[314609866,1708450330753,-219.400776,0.00049589,120]
[314609867,1708450330763,-500.0,0.00049589,30]
[314609868,1708450330773,-2578.86,0.00049589,30]
[314609869,1708450330783,-542.64,0.00049589,30]
[314609870,1708450330792,-242.39,0.00049589,30]
[314609871,1708450330801,-531.38,0.00049589,30]
[314609872,1708450330810,-500.0,0.00049589,30]
[314609873,1708450330820,-5958.34,0.00049589,30]
[314609874,1708450330829,-500.0,0.00049589,30]
[314609875,1708450330839,-9351.93,0.00049589,30]
[314609876,1708450330848,-500.0,0.00049589,30]
[314609877,1708450330858,-500.0,0.00049589,30]
[314609878,1708450330867,-500.0,0.00049589,30]
[314609879,1708450330877,-500.0,0.00049589,30]
[314609880,1708450330890,-151.0,0.00049589,120]
[314609881,1708450330900,-2403.368528,0.00049589,120]
[314609882,1708450330909,-1749.56,0.00049589,30]
[314609883,1708450330919,-500.0,0.00049589,30]
[314609884,1708450330928,-2403.368523,0.00049589,120]
[314609885,1708450330938,-1234.3,0.00049589,30]
[314609886,1708450330947,-500.0,0.00049589,30]
[314609887,1708450330957,-500.0,0.00049589,30]
[314609888,1708450330967,-500.0,0.00049589,30]
[314609889,1708450330977,-514.34,0.00049589,30]
[314609890,1708450330986,-795.95,0.00049589,30]
[314609891,1708450330996,-500.0,0.00049589,30]
[314609892,1708450331006,-500.0,0.00049589,30]
[314609893,1708450331015,-500.0,0.00049589,30]
[314609894,1708450331024,-500.0,0.00049589,30]
[314609895,1708450331034,-500.0,0.00049589,30]
[314609896,1708450331044,-500.0,0.00049589,30]
[314609897,1708450331053,-500.0,0.00049589,30]
[314609898,1708450331063,-580.83,0.00049589,30]
[314609899,1708450331072,-319.89,0.00049589,30]
[314609900,1708450331082,-500.0,0.00049589,30]
[314609901,1708450331091,-4989.05,0.00049589,120]
[314609902,1708450331101,-1571.69,0.00049589,30]
[314609903,1708450331110,-4989.05,0.00049589,120]
[314609904,1708450331119,-500.0,0.00049589,30]
[314609905,1708450331128,-348.107388,0.00049589,30]
[314609906,1708450331141,-889.56,0.00049589,30]
[314609907,1708450331151,-601.741696,0.00049589,120]
[314609908,1708450331161,-2031.89,0.00049589,30]
[314609909,1708450331170,-601.741701,0.00049589,120]
[314609910,1708450331180,-500.0,0.00049589,30]
[314609911,1708450331190,-890.15,0.00049589,30]
[314609912,1708450331199,-3480.121309,0.00049589,120]
[314609913,1708450331209,-500.0,0.00049589,30]
[314609914,1708450331219,-3480.121318,0.00049589,120]
[314609915,1708450331230,-1056.5,0.00049589,30]
[314609916,1708450331240,-1596.9,0.00049589,30]
[314609917,1708450331250,-1523.79,0.00049589,30]
[314609918,1708450331259,-1495.71,0.00049589,30]
[314609919,1708450331269,-482.595479,0.00049589,120]
[314609920,1708450331281,-500.0,0.00049589,30]
[314609921,1708450331291,-283.036985,0.00049589,120]
[314609922,1708450331301,-500.0,0.00049589,30]
[314609923,1708450331310,-482.595474,0.00049589,120]
[314609924,1708450331320,-500.0,0.00049589,30]
[314609925,1708450331330,-1097.5,0.00049589,30]
[314609926,1708450331339,-500.0,0.00049589,30]
[314609927,1708450331351,-500.0,0.00049589,30]
[314609928,1708450331362,-585.84,0.00049589,30]
[314609929,1708450331372,-500.0,0.00049589,30]
[314609930,1708450331382,-500.0,0.00049589,30]
[314609931,1708450331395,-500.0,0.00049589,30]
[314609932,1708450331405,-500.0,0.00049589,30]
[314609933,1708450331415,-382.45320921,0.00049589,30]
[314609934,1708450331425,-500.0,0.00049589,30]
[314609935,1708450331434,-242.015973,0.00049589,120]
[314609936,1708450331444,-500.0,0.00049589,30]
[314609937,1708450331454,-500.0,0.00049589,30]
[314609938,1708450331465,-257.54621076,0.00049589,30]
[314609939,1708450331475,-500.0,0.00049589,30]
[314609940,1708450331485,-399.92563,0.00049589,30]
[314609941,1708450331495,-500.0,0.00049589,30]
[314609942,1708450331505,-500.0,0.00049589,30]
[314609943,1708450331515,-500.0,0.00049589,30]
[314609944,1708450331525,-1044.252236,0.00049589,120]
[314609945,1708450331534,-1109.89,0.00049589,30]
[314609946,1708450331544,-500.0,0.00049589,30]
[314609947,1708450331556,-1044.252227,0.00049589,120]
[314609948,1708450331566,-500.0,0.00049589,30]
[314609949,1708450331576,-500.0,0.00049589,30]
[314609950,1708450331586,-500.0,0.00049589,30]
[314609951,1708450331595,-619.250431,0.00049589,120]
[314609952,1708450331604,-990.69,0.00049589,30]
[314609953,1708450331614,-619.250436,0.00049589,120]
[314609954,1708450331624,-500.0,0.00049589,30]
[314609955,1708450331636,-627.6,0.00049589,30]
[314609956,1708450331648,-427.38357596,0.00049589,30]
[314609957,1708450331657,-553.54,0.00049589,30]
[314609958,1708450331667,-2790.94,0.00049589,30]
[314609959,1708450331676,-151.0,0.00049589,120]
[314609960,1708450331686,-872.54,0.00049589,30]
[314609961,1708450331696,-500.0,0.00049589,30]
[314609962,1708450331705,-500.0,0.00049589,30]
[314609963,1708450331715,-500.0,0.00049589,30]
[314609964,1708450331725,-151.0,0.00049589,120]
[314609965,1708450331735,-500.0,0.00049589,30]
[314609966,1708450331744,-500.0,0.00049589,30]
[314609967,1708450331754,-584.12,0.00049589,30]
[314609968,1708450331764,-500.0,0.00049589,30]
[314609969,1708450331773,-500.0,0.00049589,30]
[314609970,1708450331783,-506.93,0.00049589,30]
[314609971,1708450331792,-500.0,0.00049589,30]
[314609972,1708450331802,-500.0,0.00049589,30]
[314609973,1708450331811,-500.0,0.00049589,30]
[314609974,1708450331821,-713.45,0.00049589,30]
[314609975,1708450331830,-500.0,0.00049589,30]
[314609976,1708450331840,-2162.43,0.00049589,30]
[314609977,1708450331850,-500.0,0.00049589,30]
[314609978,1708450331859,-500.0,0.00049589,30]
[314609979,1708450331869,-613.65384777,0.00049589,30]
[314609980,1708450331879,-500.0,0.00049589,30]
[314609981,1708450331893,-552.52,0.00049589,30]
[314609982,1708450331903,-1508.534788,0.00049589,14]
[314609983,1708450331914,-875.54,0.00049589,30]
[314609984,1708450331923,-584.88,0.00049589,30]
[314609985,1708450331933,-500.0,0.00049589,30]
[314609986,1708450331943,-1508.534782,0.00049589,14]
[314609987,1708450331954,-368.479906,0.00049589,120]
[314609988,1708450331964,-530.19,0.00049589,30]
[314609989,1708450331973,-500.0,0.00049589,30]
[314609990,1708450331983,-368.479905,0.00049589,120]
[314609991,1708450331993,-151.0,0.00049589,120]
[314609992,1708450332002,-340.17110525,0.00049589,30]
[314609993,1708450332013,-150.72003919,0.00049594,30]
[314609994,1708450332022,-200.0,0.000496,27]
[314609995,1708450332032,-1727.001711,0.000496,24]
[314609996,1708450332042,-2000.0,0.000496,2]
[314609997,1708450332052,-1000.0,0.000496,23]
[314609998,1708450332062,-372.05931389,0.00049604,14]
[314609999,1708450332072,-8399.91530321,0.00049612,14]
[314610000,1708450332081,-8399.91530321,0.00049614,14]
[314610001,1708450332091,-150.0,0.00049626,9]
[314610002,1708450332101,-150.0,0.00049629,30]
[314610003,1708450332111,-372.05931389,0.00049639,14]
[314610004,1708450332121,-372.05931389,0.00049648,14]
[314610005,1708450332131,-3149.96823864,0.0004965,7]
[314610006,1708450332145,-182.45349069,0.0004965,66]
[314610007,1708450332155,-151.93088735,0.00049652,30]
[314610008,1708450332165,-247.73629298,0.0004967,30]
[314610009,1708450332175,-443544.794141,0.0004968,30]
[314610010,1708450332186,-16867.2544606,0.0004968,120]
[314610011,1708450332196,-151.0,0.0004968,120]
[314610012,1708450332205,-290.268281,0.0004968,120]
[314610013,1708450332215,-290.268281,0.0004968,120]
[314610014,1708450332225,-159.734733,0.0004968,120]
[314610015,1708450332235,-159.734733,0.0004968,120]
[314610016,1708450332245,-566.097211,0.0004968,120]
[314610017,1708450332254,-566.097211,0.0004968,120]
[314610018,1708450332268,-151.0,0.0004968,14]
[314610019,1708450332278,-261.9046,0.0004968,120]
[314610020,1708450332289,-261.9046,0.0004968,120]
[314610021,1708450332299,-151.0,0.0004968,120]
[314610022,1708450332309,-151.0,0.0004968,120]
[314610023,1708450332319,-161.343318,0.0004968,120]
[314610024,1708450332329,-151.0,0.0004968,120]
[314610025,1708450332342,-161.343318,0.0004968,120]
[314610026,1708450332352,-151.0,0.0004968,30]
[314610027,1708450332362,-159.75125406,0.00049687,30]
[314610028,1708450332373,-8399.91530321,0.00049697,14]
[314610029,1708450332383,-260.91296138,0.000497,120]
[314610030,1708450332395,-607.98339699,0.000497,30]
[314610031,1708450332405,-307.9823172,0.000497,10]
[314610032,1708450332415,-154.365764,0.000497,20]
[314610033,1708450332425,-1000.0,0.00049701,4]
[314610034,1708450332436,-196.35429008,0.00049732,30]
[314610035,1708450332640,-196.35429008,0.00049753,30]
[314610036,1708450332652,-1793.17720936,0.00049757,2]
[314610037,1708450332661,-1000.0,0.00049761,4]
[314610038,1708450332671,-169.90126949,0.00049774,9]
[314610039,1708450332682,-196.35429008,0.00049774,30]
[314610040,1708450332692,-150.0,0.00049776,30]
[314610041,1708450332701,-27192.919729,0.0004978,10]
[314610042,1708450332711,-207.0,0.00049799,38]
[314610043,1708450332721,-777.0,0.000498,120]
[314610044,1708450332730,-200.15948419,0.000498,120]
[314610045,1708450332739,-1000.0,0.00049821,4]
[314610046,1708450332749,-2571.8,0.00049829,117]
[314610047,1708450332760,-154.33839749,0.00049838,30]
[314610048,1708450332769,-600.0,0.00049863,30]
[314610049,1708450332779,-600.0,0.00049863,30]
[314610050,1708450332788,-600.0,0.00049863,30]
[314610051,1708450332798,-600.0,0.00049863,30]
[314610052,1708450332807,-600.0,0.00049863,30]
[314610053,1708450332817,-600.0,0.00049863,30]
[314610054,1708450332827,-600.0,0.00049863,30]
[314610055,1708450332836,-600.0,0.00049863,30]
[314610056,1708450332846,-600.0,0.00049863,30]
[314610057,1708450332855,-600.0,0.00049863,30]
[314610058,1708450332864,-600.0,0.00049863,30]
[314610059,1708450332873,-600.0,0.00049863,30]
[314610060,1708450332883,-600.0,0.00049863,30]
[314610061,1708450332896,-786.47,0.00049863,31]
[314610062,1708450332906,-500.0,0.00049863,30]
[314610063,1708450332915,-351.71959401,0.00049863,30]
[314610064,1708450332925,-500.0,0.00049863,2]
[314610065,1708450332935,-1441.53,0.00049863,30]
[314610066,1708450332945,-500.0,0.00049863,30]
[314610067,1708450332954,-500.0,0.00049863,30]
[314610068,1708450332964,-647.16350937,0.00049863,30]
[314610069,1708450332974,-1270.73,0.00049863,30]
[314610070,1708450332983,-500.0,0.00049863,30]
[314610071,1708450332993,-647.07,0.00049863,30]
[314610072,1708450333003,-382.320532,0.00049863,30]
[314610073,1708450333012,-734.91,0.00049863,30]
[314610074,1708450333022,-500.0,0.00049863,30]
[314610075,1708450333032,-500.0,0.00049863,30]
[314610076,1708450333041,-375.0,0.00049863,120]
[314610077,1708450333051,-356.39986073,0.00049863,30]
[314610078,1708450333061,-2166.93,0.00049863,30]
[314610079,1708450333071,-500.0,0.00049863,30]
[314610080,1708450333081,-433.10839693,0.00049863,30]
[314610081,1708450333091,-500.0,0.00049863,30]
[314610082,1708450333101,-625.5,0.00049863,30]
[314610083,1708450333111,-2578.86,0.00049863,30]
[314610084,1708450333122,-542.64,0.00049863,30]
[314610085,1708450333132,-379.78379882,0.00049863,30]
[314610086,1708450333144,-5958.34,0.00049863,30]
[314610087,1708450333154,-500.0,0.00049863,30]
[314610088,1708450333165,-9351.93,0.00049863,30]
[314610089,1708450333175,-560.10723599,0.00049863,30]
[314610090,1708450333185,-646.12,0.00049863,30]
[314610091,1708450333195,-500.0,0.00049863,30]
[314610092,1708450333205,-500.0,0.00049863,30]
[314610093,1708450333214,-1749.56,0.00049863,30]
[314610094,1708450333224,-500.0,0.00049863,30]
[314610095,1708450333234,-1234.3,0.00049863,30]
[314610096,1708450333243,-500.0,0.00049863,30]
[314610097,1708450333253,-500.0,0.00049863,30]
[314610098,1708450333264,-514.34,0.00049863,30]
[314610099,1708450333273,-795.95,0.00049863,30]
[314610100,1708450333289,-500.0,0.00049863,30]
[314610101,1708450333299,-500.0,0.00049863,30]
[314610102,1708450333308,-500.0,0.00049863,30]
[314610103,1708450333318,-500.0,0.00049863,30]
[314610104,1708450333327,-500.0,0.00049863,30]
[314610105,1708450333337,-500.0,0.00049863,30]
[314610106,1708450333347,-500.0,0.00049863,30]
[314610107,1708450333357,-580.83,0.00049863,30]
[314610108,1708450333366,-500.0,0.00049863,30]
[314610109,1708450333375,-1571.69,0.00049863,30]
[314610110,1708450333385,-500.0,0.00049863,30]
[314610111,1708450333397,-889.56,0.00049863,30]
[314610112,1708450333407,-2031.89,0.00049863,30]
[314610113,1708450333417,-890.15,0.00049863,30]
[314610114,1708450333426,-500.0,0.00049863,30]
[314610115,1708450333436,-554.74,0.00049863,30]
[314610116,1708450333446,-1056.5,0.00049863,30]
[314610117,1708450333455,-1596.9,0.00049863,30]
[314610118,1708450333465,-1523.79,0.00049863,30]
[314610119,1708450333474,-1495.71,0.00049863,30]
[314610120,1708450333483,-489.15,0.00049863,30]
[314610121,1708450333492,-500.0,0.00049863,30]
[314610122,1708450333501,-1097.5,0.00049863,30]
[314610123,1708450333510,-500.0,0.00049863,30]
[314610124,1708450333519,-585.84,0.00049863,30]
[314610125,1708450333529,-500.0,0.00049863,30]
[314610126,1708450333538,-500.0,0.00049863,30]
[314610127,1708450333548,-500.0,0.00049863,30]
[314610128,1708450333558,-500.0,0.00049863,30]
[314610129,1708450333567,-500.0,0.00049863,30]
[314610130,1708450333577,-500.0,0.00049863,30]
[314610131,1708450333586,-500.0,0.00049863,30]
[314610132,1708450333596,-500.0,0.00049863,30]
[314610133,1708450333605,-500.0,0.00049863,30]
[314610134,1708450333616,-500.0,0.00049863,30]
[314610135,1708450333626,-1109.89,0.00049863,30]
[314610136,1708450333639,-500.0,0.00049863,30]
[314610137,1708450333649,-500.0,0.00049863,30]
[314610138,1708450333659,-500.0,0.00049863,30]
[314610139,1708450333670,-500.0,0.00049863,30]
[314610140,1708450333679,-990.69,0.00049863,30]
[314610141,1708450333689,-500.0,0.00049863,30]
[314610142,1708450333699,-627.6,0.00049863,30]
[314610143,1708450333708,-2790.94,0.00049863,30]
[314610144,1708450333717,-872.54,0.00049863,30]
[314610145,1708450333726,-500.0,0.00049863,30]
[314610146,1708450333735,-500.0,0.00049863,30]
[314610147,1708450333744,-500.0,0.00049863,30]
[314610148,1708450333754,-555.94922462,0.00049863,30]
[314610149,1708450333763,-307.72,0.00049863,30]
[314610150,1708450333773,-584.12,0.00049863,30]
[314610151,1708450333783,-500.0,0.00049863,30]
[314610152,1708450333792,-500.0,0.00049863,30]
[314610153,1708450333802,-506.93,0.00049863,30]
[314610154,1708450333811,-538.01148953,0.00049863,30]
[314610155,1708450333821,-500.0,0.00049863,30]
[314610156,1708450333830,-713.45,0.00049863,30]
[314610157,1708450333839,-500.0,0.00049863,30]
[314610158,1708450333848,-2162.43,0.00049863,30]
[314610159,1708450333857,-500.0,0.00049863,30]
[314610160,1708450333867,-500.0,0.00049863,30]
[314610161,1708450333876,-636.62253347,0.00049863,30]
[314610162,1708450333885,-552.52,0.00049863,30]
[314610163,1708450333897,-875.54,0.00049863,30]
[314610164,1708450333907,-584.88,0.00049863,30]
[314610165,1708450333917,-607.25,0.00049863,30]
[314610166,1708450333927,-530.19,0.00049863,30]
[314610167,1708450333937,-500.0,0.00049863,30]
[314610168,1708450333947,-152.57,0.00049863,30]
[314610169,1708450333958,-67029.47535064,0.0004987,20]
[314610170,1708450333968,-300.0,0.0004987,3]
[314610171,1708450333978,-115000.0,0.0004988,8]
[314610172,1708450333987,-115000.0,0.0004988,9]
[314610173,1708450333997,-115000.0,0.0004988,10]
[314610174,1708450334006,-124534.65,0.0004988,12]
[314610175,1708450334015,-49500.0,0.0004988,4]
[314610176,1708450334025,-170.65626936,0.0004988,2]
[314610177,1708450334034,-233.841444,0.0004988,60]
[314610178,1708450334046,-275.391815,0.0004988,120]
[314610179,1708450334055,-275.391824,0.0004988,120]
[314610180,1708450334066,-151.0,0.0004988,2]
[314610181,1708450334076,-151.0,0.0004988,120]
[314610182,1708450334086,-219.400776,0.0004988,120]
[314610183,1708450334095,-219.400773,0.0004988,120]
[314610184,1708450334104,-1000.0,0.00049881,4]
[314610185,1708450334114,-169.04944548,0.00049888,2]
[314610186,1708450334123,-73950.0,0.00049888,7]
[314610187,1708450334133,-214.0,0.0004989,30]
[314610188,1708450334146,-208.0,0.0004989,30]
[314610189,1708450334156,-214.0,0.0004989,30]
[314610190,1708450334165,-210.0,0.0004989,30]
[314610191,1708450334175,-154.33839749,0.00049891,30]
[314610192,1708450334186,-59234.47,0.00049894,6]
[314610193,1708450334195,-200.0,0.000499,25]
[314610194,1708450334206,-1226.19743573,0.000499,120]
[314610195,1708450334215,-637.48,0.000499,7]
[314610196,1708450334225,-500.0,0.000499,30]
[314610197,1708450334234,-249.34226,0.000499,120]
[314610198,1708450334244,-290.268281,0.000499,120]
[314610199,1708450334253,-290.268287,0.000499,120]
[314610200,1708450334266,-1928.282713,0.000499,31]
[314610201,1708450334276,-1992.717287,0.000499,31]
[314610202,1708450334286,-159.734733,0.000499,120]
[314610203,1708450334296,-159.734733,0.000499,120]
[314610204,1708450334306,-566.097211,0.000499,120]
[314610205,1708450334317,-566.097216,0.000499,120]
[314610206,1708450334326,-151.0,0.000499,14]
[314610207,1708450334336,-261.9046,0.000499,120]
[314610208,1708450334348,-261.904609,0.000499,120]
[314610209,1708450334358,-151.0,0.000499,120]
[314610210,1708450334367,-151.0,0.000499,120]
[314610211,1708450334377,-161.343318,0.000499,120]
[314610212,1708450334389,-151.0,0.000499,120]
[314610213,1708450334400,-161.34332,0.000499,120]
[314610214,1708450334411,-151.0,0.000499,30]
[314610215,1708450334421,-182.45349069,0.000499,67]
[314610216,1708450334431,-151.0,0.000499,21]
[314610217,1708450334442,-650.58787207,0.0004991,120]
[314610218,1708450334452,-156.11216471,0.00049918,30]
[314610219,1708450334462,-150.0,0.00049924,30]
[314610220,1708450334473,-150.0,0.00049924,30]
[314610221,1708450334482,-159.75125406,0.00049926,30]
[314610222,1708450334493,-154.33839749,0.0004994,30]
[314610223,1708450334502,-1000.0,0.0004994,4]
[314610224,1708450334512,-155.58772598,0.00049944,30]
[314610225,1708450334521,-500.0,0.00049952,17]
[314610226,1708450334530,-500.0,0.00049952,17]
[314610227,1708450334540,-500.0,0.00049952,17]
[314610228,1708450334549,-500.0,0.00049952,17]
[314610229,1708450334559,-500.0,0.00049952,25]
[314610230,1708450334568,-500.0,0.00049952,17]
[314610231,1708450334578,-500.0,0.00049952,17]
[314610232,1708450334587,-500.0,0.00049952,17]
[314610233,1708450334597,-500.0,0.00049952,17]
[314610234,1708450334606,-500.0,0.00049952,25]
[314610235,1708450334615,-1579.0,0.00049955,30]
[314610236,1708450334625,-250.0,0.0004997,3]
[314610237,1708450334634,-202.4382888,0.00049985,120]
[314610238,1708450334648,-200.0,0.00049987,76]
[314610239,1708450334658,-279372.06070385,0.0004999,7]
[314610240,1708450334667,-271.50865478,0.0004999,7]
[314610241,1708450334677,-159.75125406,0.00049996,30]
[314610242,1708450334688,-100000.0,0.0005,50]
[314610243,1708450334697,-363.81887212,0.0005,120]
[314610244,1708450334713,-2500.0,0.0005,120]
[314610245,1708450334727,-2822.26418612,0.0005,10]
[314610246,1708450334740,-150.0,0.0005,27]
[314610247,1708450334753,-558.85588848,0.0005,4]
[314610248,1708450334766,-10000.0,0.0005,120]
[314610249,1708450334781,-605.3790803,0.0005,30]
[314610250,1708450334795,-528.934417,0.0005,30]
[314610251,1708450334808,-300.0,0.0005,50]
[314610252,1708450334820,-300.0,0.0005,5]
[314610253,1708450334834,-3337.0,0.0005,120]
[314610254,1708450334847,-5000.0,0.0005,15]
[314610255,1708450334862,-10891.3756986,0.0005,12]
[314610256,1708450334875,-511.0,0.0005,120]
[314610257,1708450334892,-1000.0,0.0005,7]
[314610258,1708450334905,-200.0,0.0005,120]
[314610259,1708450334920,-617.58578525,0.0005,30]
[314610260,1708450334933,-9024.27049589,0.0005,14]
[314610261,1708450334947,-500.0,0.0005,120]
[314610262,1708450334961,-29923.52967147,0.0005,120]
[314610263,1708450334977,-9781.5675916,0.0005,14]
[314610264,1708450334992,-500.0,0.0005,25]
[314610265,1708450335006,-825.39586049,0.0005,120]
[314610266,1708450335016,-151.70627839,0.0005,120]
[314610267,1708450335028,-10000.0,0.0005,28]
[314610268,1708450335041,-600.32019774,0.0005,28]
[314610269,1708450335054,-506.67,0.0005,7]
[314610270,1708450335069,-500.0,0.0005,7]
[314610271,1708450335081,-50000.0,0.0005,30]
[314610272,1708450335092,-14200.0,0.0005,21]
[314610273,1708450335108,-130246.91353339,0.0005,40]
[314610274,1708450335121,-790.0,0.0005,20]
[314610275,1708450335134,-690.99199814,0.0005,30]
[314610276,1708450335150,-500.0,0.0005,15]
[314610277,1708450335162,-500.0,0.0005,5]
[314610278,1708450335175,-916.868224,0.0005,5]
[314610279,1708450335187,-800.0,0.0005,10]
[314610280,1708450335199,-2153.88256957,0.0005,30]
[314610281,1708450335212,-20062.57104883,0.0005,120]
[314610282,1708450335225,-124988.71883744,0.0005,120]
[314610283,1708450335237,-200.0,0.0005,120]
[314610284,1708450335251,-151525.49061114,0.0005,60]
[314610285,1708450335267,-6594.892,0.0005,60]
[314610286,1708450335281,-208713.94,0.0005,15]
[314610287,1708450335293,-225232.8031779,0.0005,60]
[314610288,1708450335306,-206682.27698497,0.0005,120]
[314610289,1708450335318,-424.46909894,0.0005,120]
[314610290,1708450335330,-3636.33001522,0.0005,120]
[314610291,1708450335343,-200.0,0.0005,120]
[314610292,1708450335356,-88450.9839465,0.0005,120]
[314610293,1708450335369,-5000.0,0.0005,120]
[314610294,1708450335382,-32835.459586,0.0005,25]
[314610295,1708450335400,-60118.22101531,0.0005,4]
[314610296,1708450335412,-311.52434626,0.0005,120]
[314610297,1708450335425,-4628.44468404,0.0005,28]
[314610298,1708450335437,-10000.0,0.0005,28]
[314610299,1708450335450,-261.0,0.0005,120]
[314610300,1708450335462,-90815.20646171,0.0005,41]
[314610301,1708450335474,-35420.42,0.0005,120]
[314610302,1708450335487,-50000.0,0.0005,120]
[314610303,1708450335499,-2045.19,0.0005,120]
[314610304,1708450335512,-13104.00453314,0.0005,120]
[314610305,1708450335523,-2000.0,0.0005,120]
[314610306,1708450335536,-20629.65770445,0.0005,30]
[314610307,1708450335548,-5371.55531596,0.0005,28]
[314610308,1708450335561,-26987.19,0.0005,120]
[314610309,1708450335573,-255.05877058,0.0005,30]
[314610310,1708450335585,-836.74752093,0.0005,30]
[314610311,1708450335597,-1651.25074705,0.0005,120]
[314610312,1708450335609,-225.62541626,0.0005,4]
[314610313,1708450335621,-216.18283918,0.0005,4]
[314610314,1708450335633,-232.65986783,0.0005,4]
[314610315,1708450335650,-155.0,0.0005,2]
[314610316,1708450335661,-29101.73070306,0.0005,30]
[314610317,1708450335673,-4426.25954486,0.0005,45]
[314610318,1708450335684,-179.19943635,0.0005,30]
[314610319,1708450335696,-310.79690139,0.0005,30]
[314610320,1708450335707,-569.0,0.0005,120]
[314610321,1708450335719,-880.55454027,0.0005,30]
[314610322,1708450335730,-1000.0,0.0005,30]
[314610323,1708450335742,-436.64311451,0.0005,45]
[314610324,1708450335755,-287411.14328758,0.0005,30]
[314610325,1708450335767,-414.81095878,0.0005,45]
[314610326,1708450335780,-686.90974158,0.0005,30]
[314610327,1708450335792,-1000.0,0.0005,30]
[314610328,1708450335804,-649.84862025,0.0005,30]
[314610329,1708450335815,-1000.0,0.0005,30]
[314610330,1708450335827,-222.09705364,0.0005,45]
[314610331,1708450335839,-419.8068751,0.0005,30]
[314610332,1708450335850,-213.22205183,0.0005,30]
[314610333,1708450335863,-1687.98,0.0005,45]
[314610334,1708450335875,-631.11,0.0005,45]
[314610335,1708450335889,-1688.0,0.0005,45]
[314610336,1708450335901,-1688.0,0.0005,45]
[314610337,1708450335913,-1688.0,0.0005,45]
[314610338,1708450335924,-1688.0,0.0005,45]
[314610339,1708450335936,-1688.0,0.0005,45]
[314610340,1708450335947,-2049.15,0.0005,120]
[314610341,1708450335959,-1688.0,0.0005,45]
[314610342,1708450335970,-1705.23,0.0005,45]
[314610343,1708450335982,-630.9495784,0.0005,60]
[314610344,1708450335994,-1000.0,0.0005,30]
[314610345,1708450336006,-65740.0,0.0005,10]
[314610346,1708450336019,-5178.28779496,0.0005,45]
[314610347,1708450336030,-200.0,0.0005,27]
[314610348,1708450336041,-300.0,0.0005,51]
[314610349,1708450336052,-419413.0,0.0005,120]
[314610350,1708450336064,-1921.08446105,0.0005,30]
[314610351,1708450336075,-159.734733,0.0005,120]
[314610352,1708450336087,-159.734728,0.0005,120]
[314610353,1708450336099,-2417.26416969,0.0005,7]
[314610354,1708450336111,-1526.82871164,0.0005,30]
[314610355,1708450336123,-367.11716539,0.0005,30]
[314610356,1708450336134,-162.65126383,0.0005,45]
[314610357,1708450336151,-21720.0,0.0005,120]
[314610358,1708450336164,-568.0,0.0005,30]
[314610359,1708450336176,-906.41638353,0.0005,30]
[314610360,1708450336189,-838.54098487,0.0005,30]
[314610361,1708450336200,-170.13638674,0.0005,30]